{"text_format":"1","workbook":"xlsx","n_sheets":1,"sheets":["Tabelle1"],"not_rendered":{"charts":0,"images":0,"macros":1,"external_links":0,"defined_names":0,"comments":0,"pivot_tables":0},"unopened":[],"bounds":{"document_bytes":16777216,"sheet_cells":100000,"rows_first":2000,"rows_last":500,"rows_between":2000,"halvings":0,"cell_chars":16384,"cell_head_chars":4096},"cells_cut":0,"cells_raw":0,"read":"whole","date_system":"1900"}

{"sheet":"Tabelle1","index":0,"n_rows":18,"n_cols":10,"rows_kept":18,"cut":false,"hidden":false,"merged":[]}
["Bezeichnung/Nummern","Spalte nicht relevant","Nummernauszug aus Spalte A 'RECHTS(A...;7)'","Spalte nicht relevant","Spalte nicht relevant","Bezeichnung/Nummern","Spalte nicht relevant","Nummernauszug aus Spalte F 'RECHTS(A...;7)'","Angezeigte Zeilennummer bei bereits vorhandener Zahlenfolge in Spalte 'C'"]
["kibcsadhbacsefj-1000791",null,{"$f":"RIGHT(A2,7)","v":"1000791"},null,null,"sssdeily-1000791",null,{"$f":"RIGHT(F2,7)","v":"1000791"},{"$f":"IFERROR(MATCH(H2,C:C,0),\"\")","v":2}]
["oohiucqdw-1277543",null,"1277543",null,null,"ksigljdz-1288543",null,"1288543",{"$f":"IFERROR(MATCH(H3,C:C,0),\"\")","v":""}]
["ppouohiuzuf-1433227",null,"1433227",null,null,"apiosx-4673527",null,"4673527",""]
["dsy-1754389",null,"1754389",null,null,"kkkffwe-3965222",null,"3965222",""]
["cccuuuff-1881289",null,"1881289",null,null,"trdfgxysdasd-1877744",null,"1877744",""]
["polkjhsgjjj-1987600",null,"1987600",null,null,"lizwsdrcsa-4188554",null,"4188554",""]
[null,null,null,null,null,"ksdjdz-1277543",null,{"$f":"RIGHT(F8,7)","v":"1277543"},3,"<-Zelle H8 =gelb hinterlegen"]
[null,null,null,null,null,"kjiviuuz-1234567",null,"1234567",""]
[null,null,null,null,null,"jhzitop-3145873",null,"3145873",""]
[null,null,null,null,null,"polkjhsgjjj-1987600",null,"1987600",7,"<-Zelle H11 =grün hinterlegen"]
["Spalte hat Hunderte Einträge",null,"Spalte aufsteigend sortiert",null,null,null,null,"Spalte unsortiert"]
[]
[]
[]
[]
["ZIEL: Kommt die in Spalte 'H' angezeigte Zahlenfolge bereits in Salte 'C' vor, soll die  farbige Formatierung aus Spalte 'A' in Spalte 'H' übernommen werden"]
["Frage am Rande: Wie bekomme ich das #NV in Spalte 'I' weg, sodass dort nur die Zeilennummern angezeigt werden?"]